[Event "Krakow Championship-A 2022"]
[Site "Krakow"]
[Date "2022.06.26"]
[Round "3.21"]
[White "Kvaloy, Aksel Bu"]
[Black "Jacobsen, Mikkel Manosri"]
[Result "1/2-1/2"]
[ECO "B29"]
[WhiteElo "2296"]
[BlackElo "2251"]
[Annotator "TA"]
[PlyCount "83"]
[EventDate "2022.06.25"]
[EventType "swiss"]
[EventCountry "POL"]
[SourceTitle "playchess.com"]
[Source "ChessBase"]
[SourceQuality "1"]
[TimeControl "40/5400+30:1800+30"]

{[%evp 10,83,29,27,54,-35,37,-33,-35,-35,0,-47,-30,-56,-32,-31,-20,-38,-33,-139,-139,-124,-135,-134,-115,-104,-99,-97,-98,-79,-92,-103,-97,-83,-10,-14,0,0,31,0,0,0,0,0,0,-6,0,0,0,-4,0,0,61,54,61,-31,0,-61,0,0,0,0,0,0,86,0,0,0,0,0,0,0,0,0,0,0]} 1. e4 {[%emt 0:02:02]} c5 {[%emt 0:00:04]} 2. Nf3 {[%emt 0:02:01]} Nf6 {[%emt 0:00:08][%cal Bg8f6,Bf6d5,Bd5e7,Be7c6][%mdl 32]} 3. e5 {[%emt 0:00:18]} Nd5 {[%emt 0:00:04]} 4. Nc3 {[%emt 0:00:13]} e6 {[%emt 0:00:03]} 5. Ne4 {[%emt 0:00:37]} f5 {[%emt 0:00:05]} 6. Nc3 {[%emt 0:00:20]} Ne7 $1 {[%emt 0:00:11][%mdl 4] [#] is more profitable than 6...Nc6 at the moment. B29: Sicilian: 2 Nf3 Nf6 (Nimzowitsch Variation).} 7. d3 $146 {[%emt 0:07:00]} (7. Nb5 $14 Nec6 8. c3) ({Predecessor:} 7. b3 Nbc6 8. Bb2 a6 9. d4 cxd4 10. Nxd4 Nxd4 11. Qxd4 Nc6 12. Qd2 Qa5 13. O-O-O Ba3 14. f4 {½-½ (81) Matlakov,M (2674)-Le,T (2514) Chess.com INT 2022}) 7... a6 {[%emt 0:01:51]} (7... Nbc6 $15) 8. h4 {[%emt 0:03:49]} (8. d4 $14) 8... Nbc6 $15 {[%emt 0:03:24] Black is slightly better.} 9. h5 {[%emt 0:08:49] Prevents Ng6.} Nd4 {[%emt 0:09:37]} 10. Bf4 {[%emt 0:04:13]} (10. h6 $1 $11) 10... Nec6 {[%emt 0:01:34]} 11. Nd2 {[%emt 0:13:51]} b5 {[%emt 0:11:22]} 12. Ne2 {[%emt 0:05:53]} d6 {[%emt 0:07:03]} 13. Nxd4 {[%emt 0:03:08]} cxd4 {[%emt 0:00:18]} 14. Nf3 {[%emt 0:01:56] [#]} ({White should try} 14. a4 $15) 14... dxe5 $1 $17 {[%emt 0:07:56]} 15. Nxe5 {[%emt 0:00:46] [#]} Bb4+ $1 {[%emt 0:00:37]} 16. Ke2 {[%emt 0:00:32]} Bb7 {[%emt 0:08:41]} 17. h6 {[%emt 0:06:05]} Qf6 {[%emt 0:03:28]} 18. Nxc6 {[%emt 0:02:04]} Bxc6 {[%emt 0:00:07]} 19. a3 {[%emt 0:01:08]} g5 {[%emt 0:02:57]} 20. axb4 {[%emt 0:03:38]} gxf4 {[%emt 0:00:03]} 21. Kd2 {[%emt 0:05:39]} f3 {[%emt 0:04:44] Prevents Be2.} (21... Rg8 $17) 22. gxf3 $11 {[%emt 0:01:24]} Qg5+ {[%emt 0:00:20]} 23. Ke1 {[%emt 0:00:48]} Qf4 {[%emt 0:00:09]} 24. Be2 {[%emt 0:03:59]} (24. Qd2 $5 {[%cal Rd2f4]} Qd6 25. Rg1 $14) 24... Rg8 {[%emt 0:00:10]} 25. Qd2 {[%emt 0:04:00]} Qe5 {[%emt 0:05:47]} 26. Kd1 {[%emt 0:01:29]} Rg2 {[%emt 0:01:23]} 27. Qe1 {[%emt 0:02:53]} Qf4 {[%emt 0:03:14]} (27... Kf7 {seems wilder.} 28. c3 Bb7 29. Rc1 Rc8) 28. Qd2 {[%emt 0:02:17]} Qd6 {[%emt 0:03:32]} 29. Qe1 {[%emt 0:01:21]} Bd5 {[%emt 0:00:30]} 30. Rg1 {[%emt 0:09:05]} Qh2 {[%emt 0:04:11]} (30... Rxg1 $11 31. Qxg1 O-O-O) 31. Rxg2 $14 {[%emt 0:02:40]} Qxg2 {[%emt 0:00:03]} 32. b3 {[%emt 0:01:15]} (32. c4 $1 $14 Bb7 33. Kd2) 32... Qg5 {[%emt 0:07:08]} 33. Qh1 {[%emt 0:00:58]} ({Better is} 33. c4 $11 dxc3 34. Qxc3) 33... Ke7 {[%emt 0:02:20]} (33... Qf4 $15) 34. Qh2 $11 {[%emt 0:00:30] Black must now prevent Qc7+.} Rg8 {[%emt 0:00:58] Strongly threatening ...Qg1+.} 35. Rxa6 {[%emt 0:00:37]} Kf6 {[%emt 0:02:17]} 36. Ra7 {[%emt 0:00:34]} Rg6 {[%emt 0:01:12]} (36... Qg1+ $11 {keeps the balance.} 37. Qxg1 Rxg1+ 38. Kd2 Rg2) 37. Qc7 {[%emt 0:00:33]} (37. Rxh7 $16 {Qd6 is the strong threat.} Qg1+ 38. Qxg1 Rxg1+ 39. Kd2) 37... Qg1+ {[%emt 0:00:25] The position is equal.} 38. Kd2 {[%emt 0:00:04] f4 would kill now.} Qxf2 {[%emt 0:00:05]} 39. Qd8+ {[%emt 0:00:20]} Ke5 {[%emt 0:00:12]} 40. Qc7+ {[%emt 0:00:11]} Kf6 {[%emt 0:00:08]} 41. Qd8+ {[%emt 0:14:00]} Ke5 {[%emt 0:00:00] ( -> ...Qe3+)} 42. Qc7+ {[%emt 0:06:39] Weighted Error Value: White=0.27 (precise) /Black=0.21 (precise)} 1/2-1/2

[Event "Krakow Championship-A 2022"]
[Site "Krakow"]
[Date "2022.06.27"]
[Round "4.1"]
[White "Warakomski, Tomasz"]
[Black "Agdestein, Simen"]
[Result "1/2-1/2"]
[ECO "B40"]
[WhiteElo "2534"]
[BlackElo "2559"]
[Annotator "TA"]
[PlyCount "51"]
[EventDate "2022.06.25"]
[EventType "swiss"]
[EventCountry "POL"]
[SourceTitle "playchess.com"]
[Source "ChessBase"]
[SourceQuality "1"]
[TimeControl "40/5400+30:1800+30"]

{[%evp 15,51,29,33,24,29,29,31,33,27,29,20,37,44,46,37,42,43,48,83,86,86,100,88,83,98,18,16,0,12,11,11,9,54,0,0,0,59,0]} 1. e4 c5 {[%emt 0:00:24]} 2. Nf3 {[%emt 0:00:11]} e6 {[%emt 0:00:04]} 3. d4 {[%emt 0:01:04]} cxd4 {[%emt 0:00:04]} 4. Nxd4 {[%emt 0:00:05]} Nf6 {[%emt 0:00:06]} 5. Nc3 {[%emt 0:00:06]} Nc6 {[%emt 0:00:03]} 6. Nxc6 {[%emt 0:01:28]} bxc6 {[%emt 0:00:08]} 7. e5 {[%emt 0:00:15]} Nd5 {[%emt 0:00:05]} 8. Ne4 {[%emt 0:00:05]} Bb7 {[%emt 0:00:10]} 9. Be2 $1 {[%emt 0:02:34] 9.Be2 is better than 9.c4. B45: Sicilian Four Knights.} c5 {[%emt 0:00:55]} 10. O-O {[%emt 0:01:22]} Qc7 {[%emt 0:00:37]} 11. Nd6+ {[%emt 0:00:58]} Bxd6 {[%emt 0:00:06]} 12. exd6 {[%emt 0:00:04]} Qc6 {[%emt 0:00:28]} (12... Qxd6 $2 13. c4 $18) 13. f3 {[%emt 0:00:08]} Qb6 {[%emt 0:00:14]} (13... Qxd6 $2 14. c4 $18) 14. c4 {[%emt 0:03:17]} Nb4 {[%emt 0:09:06]} 15. Be3 {[%emt 0:01:03] Black must now prevent a3.} a5 $1 {[%emt 0:00:34]} 16. Qa4 {[%emt 0:06:15] [#]} Bc6 $146 {[%emt 0:20:52]} ({Predecessor:} 16... Qxd6 17. Qb5 Ba6 18. Qxc5 Qxc5 19. Bxc5 Rc8 20. Bb6 a4 21. Rfc1 Ke7 22. Kf2 f6 {½-½ (38) Lubienski,A (2266)-Krawczyk,W (2255) ICCF email 2021}) 17. Qb3 {[%emt 0:00:30] Strongly threatening a3.} a4 {[%emt 0:04:40]} 18. Qc3 {[%emt 0:00:08] [#] Hoping for a3.} O-O {[%emt 0:00:10]} 19. a3 {[%emt 0:16:22]} Na6 {[%emt 0:00:04]} 20. Rf2 {[%emt 0:06:49] White is more active.} (20. Bd3 $16) 20... Bb7 $11 {[%emt 0:09:40]} 21. Rd1 {[%emt 0:09:31]} Nb8 {[%emt 0:10:19]} 22. Qe5 {[%emt 0:03:04]} Ra5 {[%emt 0:03:19]} 23. Bd2 {[%emt 0:01:44]} Ra6 {[%emt 0:01:18]} 24. Be3 {[%emt 0:09:12]} (24. Bc3 $14 f6 25. Qf4) 24... Ra5 {[%emt 0:00:12]} 25. Bd2 {[%emt 0:00:10]} ({Better is} 25. Qc3 $11) 25... Ra6 $14 {[%emt 0:00:07]} 26. Be3 {Weighted Error Value: White=0.12 (very precise) /Black=0.05 (flawless)} (26. Bc3 $14 f6 27. Qf4) 1/2-1/2

[Event "Krakow Championship-A 2022"]
[Site "Krakow"]
[Date "2022.06.27"]
[Round "4.2"]
[White "Piekielny, Pawel"]
[Black "Nurkiewicz, Maciej"]
[Result "0-1"]
[ECO "B90"]
[WhiteElo "2230"]
[BlackElo "2332"]
[Annotator "TA"]
[PlyCount "120"]
[EventDate "2022.06.25"]
[EventType "swiss"]
[EventCountry "POL"]
[SourceTitle "playchess.com"]
[Source "ChessBase"]
[SourceQuality "1"]
[TimeControl "40/5400+30:1800+30"]

{[%evp 11,120,29,30,16,18,12,14,6,22,15,23,0,27,0,24,0,16,25,16,0,0,-6,-6,-7,-8,-11,-11,-28,-16,-71,-71,-79,-64,-72,-39,-37,-29,-68,-65,-58,-62,-59,-58,-56,-56,-38,-37,-75,-75,-75,-75,-223,-204,-208,-199,-210,-187,-186,-157,-168,-133,-133,-118,-133,-98,-103,-109,-194,-194,-181,-181,-225,-232,-218,-244,-242,-191,-215,-70,-334,-339,-329,-338,-325,-318,-625,-625,-596,-8,-8,-8,-8,0,-8,0,-2051,-1351,-5728,-5704,-7093,-6551,-29964,-29967,-29971,-29971,-29972,-29973,-29966,-5065,-4718,-4634]} 1. e4 {[%emt 0:00:11]} c5 {[%emt 0:00:06]} 2. Nf3 {[%emt 0:00:06]} d6 {[%emt 0:00:04]} 3. d4 {[%emt 0:00:13]} cxd4 {[%emt 0:00:10]} 4. Nxd4 {[%emt 0:00:05]} Nf6 {[%emt 0:00:07]} 5. Nc3 {[%emt 0:00:07]} a6 {[%emt 0:00:06]} 6. Be3 {[%emt 0:00:04]} e5 {[%emt 0:04:42]} 7. Nde2 {[%emt 0:00:09] B90: Sicilian Najdorf: Unusual White 6th moves, 6 Be3 Ng4 and 6 Be3 e5.} Be7 {[%emt 0:01:28]} 8. Ng3 {[%emt 0:02:07]} Be6 {[%emt 0:13:41]} 9. Be2 {[%emt 0:06:12] The position is equal.} O-O {[%emt 0:03:20]} 10. Bf3 {[%emt 0:00:21] [#]} Qc7 $146 {[%emt 0:22:07]} ({Predecessor:} 10... Nbd7 11. Nf5 Bxf5 12. exf5 Re8 13. g4 h6 14. h4 Nh7 15. Bxb7 Rb8 16. Bc6 Rxb2 {½-½ (58) Lindberg,B (2443)-Blomqvist,E (2313) Taby 2007}) 11. Qd2 {[%emt 0:06:40]} Rd8 {[%emt 0:03:18]} 12. O-O {[%emt 0:04:27]} g6 {[%emt 0:15:12]} 13. Rfd1 {[%emt 0:07:41]} Nbd7 {[%emt 0:00:17]} 14. a4 {[%emt 0:11:43]} Nb6 {[%emt 0:06:07]} 15. b3 {[%emt 0:08:32] Inhibits Nc4.} Rac8 {[%emt 0:00:08][%cal Ba8c8,Bc8c3,Bc3c6][%mdl 32]} 16. a5 {[%emt 0:08:09]} Qxc3 {[%emt 0:00:14]} 17. Bxb6 {[%emt 0:00:05]} Rd7 {[%emt 0:01:15]} 18. Qxc3 {[%emt 0:03:30]} Rxc3 {[%emt 0:00:02]} 19. Rac1 {[%emt 0:00:10]} d5 {[%emt 0:01:06]} 20. Ne2 {[%emt 0:04:49]} (20. exd5 $1 $11 {keeps the balance.} Nxd5 21. Bxd5 Rxd5 22. Rxd5 Bxd5 23. Ne2) 20... Rc6 $17 {[%emt 0:00:58] Black is more active.} 21. exd5 {[%emt 0:01:27]} Bxd5 {[%emt 0:00:11]} 22. c4 {[%emt 0:04:32][%cal Rf3d5]} Bxf3 {[%emt 0:00:15]} (22... e4 $5 {[%cal Re4f3]} 23. Nc3 exf3 24. Nxd5 Nxd5 25. cxd5 Rxd5 $1 $15) 23. gxf3 {[%emt 0:00:00]} Bb4 {[%emt 0:04:07]} 24. Ng3 {[%emt 0:09:24]} Rcd6 {[%emt 0:09:54]} 25. Rxd6 {[%emt 0:01:35]} Rxd6 {[%emt 0:00:03]} 26. Ne4 {[%emt 0:05:35]} Nxe4 {[%emt 0:01:30]} 27. fxe4 $15 {[%emt 0:00:02][%mdl 4096] Endgame KRB-KRB} Rd3 {[%emt 0:01:55]} 28. c5 {[%emt 0:00:04]} Rxb3 {[%emt 0:00:54]} 29. Rd1 {[%emt 0:00:04]} Bc3 {[%emt 0:05:24]} 30. Rd7 {[%emt 0:01:14]} Bd4 {[%emt 0:00:10]} 31. Rxb7 {[%emt 0:05:28]} (31. Kg2 $17 {was called for.}) 31... Bxc5 $1 $19 {[%emt 0:00:15]} 32. Rb8+ {[%emt 0:00:52]} Kg7 {[%emt 0:00:06]} 33. Re8 {[%emt 0:00:31]} Bxb6 {[%emt 0:01:33]} 34. axb6 {[%emt 0:00:03]} Rxb6 {[%emt 0:00:24] Hoping for ...a5.} 35. Rxe5 {[%emt 0:00:03] KR-KR} Re6 {[%emt 0:03:59]} 36. Ra5 {[%emt 0:00:07]} Kf6 {[%emt 0:00:15]} 37. Kg2 {[%emt 0:03:08]} Ke7 {[%emt 0:00:09]} 38. Kf3 {[%emt 0:01:14]} Kd7 {[%emt 0:00:14]} 39. e5 {[%emt 0:02:56] [#]} (39. Ra1 $17 {was worth a try.}) 39... f6 $1 {[%emt 0:03:19]} 40. exf6 {[%emt 0:01:56]} Rxf6+ {[%emt 0:00:06]} 41. Kg3 {[%emt 0:34:37] [#]} Kc7 $1 {[%emt 0:30:16]} 42. Ra1 {[%emt 0:00:10]} Kb6 {[%emt 0:01:03]} 43. Rb1+ {[%emt 0:00:00]} Ka7 {[%emt 0:00:00]} 44. Re1 {[%emt 0:00:00]} Rf7 {[%emt 0:00:00] Inhibits Re7+.} (44... Rb6 $19 {White must now prevent ...a5.} 45. Re5 Rb5 46. Re7+ Rb7) 45. Re5 $2 {[%emt 0:00:00][%mdl 8192]} (45. h4 $15) 45... Kb6 {[%emt 0:00:00] Threatens to win with ...a5.} 46. Re6+ {[%emt 0:00:00]} Kb5 {[%emt 0:00:00]} 47. Re5+ {[%emt 0:00:00]} Kc4 {[%emt 0:00:00]} 48. h4 $2 {[%emt 0:00:00]} (48. Re4+ Kd5 49. Ra4) 48... Ra7 {[%emt 0:00:00]} 49. h5 {[%emt 0:00:00]} gxh5 $2 {[%emt 0:00:00]} (49... a5 $19 50. hxg6 hxg6 51. Re4+ Kc3 52. Re3+ Kd2) 50. f4 $1 $11 {[%emt 0:00:00]} a5 {[%emt 0:00:00][%cal Ba6a5,Ba5a4,Ba4a3,Ba3a2][%mdl 32]} 51. f5 $1 {[%emt 0:00:00]} Kd4 {[%emt 0:00:00]} 52. Re1 {[%emt 0:00:00]} Kd5 {[%emt 0:00:00][%cal Oh5h4] ...h4+! is the strong threat.} 53. Kf4 $2 {[%emt 0:00:00][%mdl 8192]} (53. f6 $11) 53... a4 $19 {[%emt 0:00:00] Strongly threatening ...a3.} 54. Re5+ {[%emt 0:03:36]} Kd6 {[%emt 0:00:00]} 55. Re6+ {[%emt 0:01:20]} Kd7 {[%emt 0:00:00] ( -> ...a3)} 56. Re1 {[%emt 0:00:47]} a3 {[%emt 0:00:00]} 57. f6 {[%emt 0:00:04]} Kd6 {[%emt 0:01:45]} 58. Kf5 {[%emt 0:01:05]} a2 {[%emt 0:00:19]} 59. Rd1+ {[%emt 0:00:05]} Kc5 {[%emt 0:01:54]} (59... Kc6 $142 60. Ra1 Kd7 61. Kg5 Ke6 62. f7 Kxf7 63. Kf4 Ra3 64. Kg5 h4 65. Kxh4 Kf6 66. Kh5 Ra4 67. Rf1+ Ke5 68. Ra1 Ra6 69. Kg4 Kd4 70. Kh4 Kc3 71. Kh3 Kb2 72. Rd1 a1=Q 73. Rxa1 Rxa1 74. Kg4 Ra5 75. Kh4 Kc3 76. Kg3 h5 77. Kg2 Kd2 78. Kf3 Ra4 79. Kf2 Ra3 80. Kg1 Ke3 81. Kf1 Ra2 82. Kg1 Kf3 83. Kh1 Kg3 84. Kg1 Ra1#) 60. Ra1 {[%emt 0:00:06]} Kd5 {[%emt 0:02:46] Weighted Error Value: White=0.67/Black=0.22 (precise)} 0-1

[Event "Krakow Championship-A 2022"]
[Site "Krakow"]
[Date "2022.06.27"]
[Round "4.3"]
[White "Fus, Jakub"]
[Black "Pechac, Jergus"]
[Result "1/2-1/2"]
[ECO "C67"]
[WhiteElo "2378"]
[BlackElo "2597"]
[Annotator "TA"]
[PlyCount "60"]
[EventDate "2022.06.25"]
[EventType "swiss"]
[EventCountry "POL"]
[SourceTitle "playchess.com"]
[Source "ChessBase"]
[SourceQuality "1"]
[TimeControl "40/5400+30:1800+30"]

{[%evp 18,60,21,19,18,18,7,16,20,22,23,12,12,10,13,12,10,7,10,0,0,0,13,0,0,0,3,0,0,-4,-2,-3,0,0,0,0,0,0,0,0,0,0,0,0,0]} 1. e4 {[%emt 0:00:07]} e5 {[%emt 0:04:02]} 2. Nf3 {[%emt 0:00:20]} Nc6 {[%emt 0:00:09]} 3. Bb5 {[%emt 0:00:27]} Nf6 {[%emt 0:00:09]} 4. O-O {[%emt 0:01:29][%cal Bh1f1,Bf1e1,Be1e5][%mdl 32]} Nxe4 {[%emt 0:00:06]} 5. Re1 {[%emt 0:01:03]} Nd6 {[%emt 0:00:07]} 6. Nxe5 {[%emt 0:00:26]} Be7 {[%emt 0:00:06]} 7. Bf1 {[%emt 0:00:17]} Nxe5 {[%emt 0:00:08]} 8. Rxe5 {[%emt 0:00:07]} O-O {[%emt 0:00:09]} 9. d4 {[%emt 0:00:53]} Bf6 {[%emt 0:00:08]} 10. Re1 {[%emt 0:00:15]} Re8 {[%emt 0:00:06] C67: Ruy Lopez: Berlin Defence: 4 0-0 Nxe4.} 11. Bf4 {[%emt 0:01:53]} Rxe1 {[%emt 0:00:11]} 12. Qxe1 {[%emt 0:00:06]} Ne8 {[%emt 0:00:11][%cal Bd6e8,Be8g7,Bg7f5][%mdl 32]} 13. c3 {[%emt 0:01:01]} d5 {[%emt 0:00:07]} 14. Bd3 {[%emt 0:05:30]} g6 {[%emt 0:00:08] The position is equal.} 15. Nd2 {[%emt 0:01:07]} Ng7 {[%emt 0:00:08]} 16. Nf3 {[%emt 0:09:21]} Bf5 {[%emt 0:00:27]} 17. Bxf5 {[%emt 0:00:39]} Nxf5 {[%emt 0:00:07]} 18. Qe2 {[%emt 0:01:46]} c6 {[%emt 0:00:09] Inhibits Qb5.} 19. Re1 {[%emt 0:00:26] [#]} h5 $146 {[%emt 0:00:10]} ({Predecessor:} 19... Ng7 20. Be5 Bxe5 21. Nxe5 Qd6 22. Qf3 f6 23. Ng4 Re8 24. Re5 Kf7 25. Nh6+ Kf8 26. Ng4 Kf7 27. Nh6+ Kf8 28. Ng4 Kf7 {½-½ (28) Wang,H (2744)-So,W (2776) Stavanger 2022}) 20. Be5 {[%emt 0:01:01]} a5 {[%emt 0:00:24]} 21. a4 {[%emt 0:05:26]} Nd6 {[%emt 0:00:21]} 22. Bxf6 {[%emt 0:03:59]} Qxf6 {[%emt 0:00:08]} 23. Qe7 {[%emt 0:00:34]} Qxe7 {[%emt 0:00:38]} 24. Rxe7 $11 {[%emt 0:00:05][%mdl 4096] Endgame KRN-KRN} Rd8 {[%emt 0:00:26] Prevents Rd7.} 25. Ne5 {[%emt 0:08:00]} Kf8 {[%emt 0:00:08]} 26. Rc7 {[%emt 0:01:33]} Ke8 {[%emt 0:00:11] Prevents Nd7.} 27. Kf1 {[%emt 0:00:43]} Rc8 {[%emt 0:00:09]} 28. Rd7 {[%emt 0:01:06]} Rd8 {[%emt 0:00:09]} 29. Rc7 {[%emt 0:00:11]} Rc8 {[%emt 0:00:04]} 30. Rd7 {[%emt 0:00:15]} Rd8 {[%emt 0:00:05] Not much happened in this game.  Weighted Error Value: White=0.02 (flawless) /Black=0.01 (flawless)} 1/2-1/2

[Event "Krakow Championship-A 2022"]
[Site "Krakow"]
[Date "2022.06.27"]
[Round "4.4"]
[White "Rozentalis, Eduardas"]
[Black "Murphy, Conor E"]
[Result "1/2-1/2"]
[ECO "B40"]
[WhiteElo "2523"]
[BlackElo "2395"]
[Annotator "TA"]
[PlyCount "40"]
[EventDate "2022.06.25"]
[EventType "swiss"]
[EventCountry "POL"]
[SourceTitle "playchess.com"]
[Source "ChessBase"]
[SourceQuality "1"]
[TimeControl "40/5400+30:1800+30"]

{[%evp 13,40,0,9,2,8,8,2,0,0,0,0,0,1,0,0,0,-8,-24,-25,-36,-24,-40,-43,-43,0,0,0,-54,0]} 1. e4 {[%emt 0:00:03]} c5 {[%emt 0:06:07]} 2. Nf3 {[%emt 0:00:19]} e6 {[%emt 0:00:15]} 3. c3 {[%emt 0:01:48]} d5 {[%emt 0:00:40]} 4. exd5 {[%emt 0:00:30]} Qxd5 {[%emt 0:00:25]} 5. d4 {[%emt 0:00:25]} Nf6 {[%emt 0:00:20]} 6. Be3 {[%emt 0:04:33]} cxd4 {[%emt 0:02:09]} 7. cxd4 {[%emt 0:00:20]} Bb4+ {[%emt 0:00:36]} 8. Nc3 {[%emt 0:02:15] B22: Sicilian: 2 c3.} Qa5 {[%emt 0:00:30]} 9. Bd2 {[%emt 0:02:37] is the legacy move (9.Qb3).} O-O {[%emt 0:02:30]} 10. Bd3 {[%emt 0:02:41] The position is equal.} Nc6 {[%emt 0:01:07]} 11. O-O {[%emt 0:00:52]} Rd8 {[%emt 0:00:47]} 12. a3 {[%emt 0:02:22]} Bxc3 {[%emt 0:00:38]} 13. Bxc3 {[%emt 0:00:58] [#]} Qh5 $146 {[%emt 0:00:48]} ({Predecessor:} 13... Qc7 14. Rc1 Nd5 15. Bd2 Qb6 16. Qc2 Nxd4 17. Nxd4 Qxd4 18. Bxh7+ Kh8 19. Rfd1 Qh4 {1-0 (52) Alekseev,E (2497)-Miroshnikov,E Korolev 2000}) 14. Re1 {[%emt 0:16:59]} b6 {[%emt 0:09:20]} 15. Qd2 {[%emt 0:09:05]} Bb7 {[%emt 0:17:22]} 16. Rad1 {[%emt 0:02:53]} Rac8 {[%emt 0:03:05]} 17. h3 {[%emt 0:01:46]} h6 {[%emt 0:09:43]} 18. Qf4 {[%emt 0:12:36]} Nd5 {[%emt 0:01:44]} (18... Ne7 $5 {[%cal Re7d5]} 19. Ne5 Nfd5 $15) 19. Qe4 {[%emt 0:02:46] [#] aiming for Qh7+.} Nf6 {[%emt 0:01:37] Inhibits Qh7+. Pair of Knights!} 20. Qf4 {[%emt 0:04:03]} Nd5 {[%emt 0:02:07] Weighted Error Value: White=0.03 (flawless) /Black=0.03 (flawless)} ({Black should play} 20... Ne7 $15 21. Re5 Nfd5) 1/2-1/2